Workbook

Sheet Monday Open
A1: NORWICH NETBALL WINTER LEAGUE 2025-26
D3: MONDAY OUTDOOR
A4: TEAM | B4: P | C4: W | D4: D | E4: L(-5) | F4: L(50%) | G4: L | H4: F | I4: A | J4: g/diff | K4: Deducted | L4: Pts
A5: Norwich Doves | B5: 11 | C5: 11 | H5: 527 | I5: 173 | J5: =(H5-I5) -> 354 | L5: =((C5*5)+(D5*3)+(E5*2)+(F5*1))-K5 -> 55
A6: Norwich City Flyers | B6: 11 | C6: 10 | F6: 1 | H6: 373 | I6: 191 | J6: 182 | L6: 51
A7: Red Hot Chillies/Gems | B7: 10 | C7: 5 | D7: 1 | E7: 2 | F7: 2 | H7: 336 | I7: 242 | J7: =(H7-I7) -> 94 | L7: =((C7*5)+(D7*3)+(E7*2)+(F7*1))-K7 -> 34
A8: Dragons | B8: 11 | C8: 6 | F8: 1 | G8: 4 | H8: 258 | I8: 314 | J8: =(H8-I8) -> -56 | L8: =((C8*5)+(D8*3)+(E8*2)+(F8*1))-K8 -> 31
A9: First Home Improvements/Wrens | B9: 10 | C9: 5 | D9: 1 | F9: 2 | G9: 2 | H9: 245 | I9: 240 | J9: =(H9-I9) -> 5 | L9: =((C9*5)+(D9*3)+(E9*2)+(F9*1))-K9 -> 30
A10: Cromer Vipers | B10: 11 | C10: 2 | E10: 1 | F10: 4 | G10: 4 | H10: 234 | I10: 354 | J10: =(H10-I10) -> -120 | L10: =((C10*5)+(D10*3)+(E10*2)+(F10*1))-K10 -> 16
A11: UEA White | B11: 10 | C11: 2 | F11: 3 | G11: 5 | H11: 197 | I11: 408 | J11: =(H11-I11) -> -211 | K11: 2 | L11: =((C11*5)+(D11*3)+(E11*2)+(F11*1))-K11 -> 11
A12: Norfolk Nettas | B12: 10 | F12: 4 | G12: 6 | H12: 134 | I12: 382 | J12: -248 | L12: 4
A14: Cancelled/abandoned
A15: Norfolk Nettas v UEA White | B15: 2025-10-13 | C15: Court Conditions
A16: FHI v Gems | B16: 2025-10-13 | C16: Court Conditions
A17: All Matches | B17: 2025-10-20 | C17: Court Conditions
A18: All Matches | B18: 2025-11-10 | C18: Court Conditions
A19: All Matches by teams | B19: 2025-11-24 | C19: Court Conditions
A20: All Matches | B20: 2025-12-01 | C20: Court Conditions
A21: All Matches | B21: 2026-01-15 | C21: Weather
A24: Conceded
A25: FHI v UEA White | B25: 2026-01-12

Sheet Tuesday
A1: NORWICH NETBALL WINTER LEAGUE 2025-26
D3: DIVISION 1
A4: TEAM | B4: P | C4: W | D4: D | E4: L(-5) | F4: L(50%) | G4: L | H4: F | I4: A | J4: g/diff | K4: Deducted | L4: Pts
A5: NU Royal | B5: 8 | C5: 8 | H5: 439 | I5: 190 | J5: =(H5-I5) -> 249 | L5: =((C5*5)+(D5*3)+(E5*2)+(F5*1))-K5 -> 40
A6: NU Sapphire | B6: 8 | C6: 6 | F6: 2 | H6: 335 | I6: 269 | J6: =(H6-I6) -> 66 | L6: =((C6*5)+(D6*3)+(E6*2)+(F6*1))-K6 -> 32
A7: Stars | B7: 8 | C7: 3 | D7: 1 | F7: 2 | G7: 2 | H7: 240 | I7: 303 | J7: =(H7-I7) -> -63 | K7: 2 | L7: =((C7*5)+(D7*3)+(E7*2)+(F7*1))-K7 -> 18
A8: T'Bred Racers | B8: 7 | C8: 2 | D8: 1 | F8: 2 | G8: 2 | H8: 214 | I8: 309 | J8: =(H8-I8) -> -95 | L8: =((C8*5)+(D8*3)+(E8*2)+(F8*1))-K8 -> 15
A9: Red Knights | B9: 8 | C9: 1 | D9: 1 | E9: 2 | F9: 2 | G9: 2 | H9: 234 | I9: 305 | J9: =(H9-I9) -> -71 | L9: =((C9*5)+(D9*3)+(E9*2)+(F9*1))-K9 -> 14
A10: Thetford A | B10: 7 | C10: 1 | D10: 1 | F10: 5 | H10: 201 | I10: 287 | J10: =(H10-I10) -> -86 | L10: =((C10*5)+(D10*3)+(E10*2)+(F10*1))-K10 -> 13
D12: DIVISION 2
A13: TEAM | B13: P | C13: W | D13: D | E13: L(-5) | F13: L(50%) | G13: L | H13: F | I13: A | J13: g/diff | K13: Deducted | L13: Pts
A14: UEA Blue | B14: 8 | C14: 8 | H14: 351 | I14: 205 | J14: =(H14-I14) -> 146 | L14: =((C14*5)+(D14*3)+(E14*2)+(F14*1))-K14 -> 40
A15: Jets | B15: 8 | C15: 6 | F15: 2 | H15: 279 | I15: 205 | J15: 74 | L15: 32
A16: T'Bred Shetlands | B16: 8 | C16: 5 | E16: 1 | F16: 2 | H16: 266 | I16: 214 | J16: 52 | L16: 29
A17: NU Marine | B17: 8 | C17: 4 | E17: 1 | F17: 3 | H17: 335 | I17: 311 | J17: 24 | L17: 25
A18: Phoenix | B18: 8 | C18: 1 | F18: 2 | G18: 5 | H18: 175 | I18: 343 | J18: -168 | K18: 2 | L18: 5
A19: Oracle Pink | B19: 8 | E19: 1 | F19: 5 | G19: 2 | H19: 200 | I19: 328 | J19: -128 | K19: 4 | L19: 3
D21: DIVISION 3
A23: TEAM | B23: P | C23: W | D23: D | E23: L(-5) | F23: L(50%) | G23: L | H23: F | I23: A | J23: g/diff | K23: Deducted | L23: Pts
A24: Black Knights | B24: 8 | C24: 6 | D24: 1 | E24: 1 | H24: 288 | I24: 257 | J24: =(H24-I24) -> 31 | L24: =((C24*5)+(D24*3)+(E24*2)+(F24*1))-K24 -> 35
A25: NU Jade | B25: 8 | C25: 5 | D25: 3 | H25: 318 | I25: 252 | J25: =(H25-I25) -> 66 | L25: =((C25*5)+(D25*3)+(E25*2)+(F25*1))-K25 -> 34
A26: Venus | B26: 8 | C26: 4 | D26: 1 | E26: 1 | F26: 2 | H26: 273 | I26: 265 | J26: =(H26-I26) -> 8 | L26: =((C26*5)+(D26*3)+(E26*2)+(F26*1))-K26 -> 27
A27: Premier | B27: 8 | C27: 4 | E27: 3 | F27: 1 | H27: 316 | I27: 318 | J27: =(H27-I27) -> -2 | L27: =((C27*5)+(D27*3)+(E27*2)+(F27*1))-K27 -> 27
A28: Wrens | B28: 8 | C28: 3 | E28: 1 | F28: 4 | H28: 252 | I28: 304 | J28: =(H28-I28) -> -52 | L28: =((C28*5)+(D28*3)+(E28*2)+(F28*1))-K28 -> 21
A29: Thetford B | B29: 8 | D29: 1 | E29: 1 | F29: 6 | H29: 237 | I29: 288 | J29: -51 | L29: 11
D31: DIVISION 4
A32: TEAM | B32: P | C32: W | D32: D | E32: L(-5) | F32: L(50%) | G32: L | H32: F | I32: A | J32: g/diff | K32: Deducted | L32: Pts
A33: Cliff Park | B33: 7 | C33: 7 | H33: 288 | I33: 146 | J33: =(H33-I33) -> 142 | L33: =((C33*5)+(D33*3)+(E33*2)+(F33*1))-K33 -> 35
A34: Sirens | B34: 7 | C34: 5 | F34: 2 | H34: 249 | I34: 181 | J34: =(H34-I34) -> 68 | L34: =((C34*5)+(D34*3)+(E34*2)+(F34*1))-K34 -> 27
A35: Sonics | B35: 7 | C35: 4 | E35: 1 | G35: 2 | H35: 203 | I35: 195 | J35: =(H35-I35) -> 8 | L35: =((C35*5)+(D35*3)+(E35*2)+(F35*1))-K35 -> 22
A36: Blades | B36: 7 | C36: 3 | F36: 4 | H36: 283 | I36: 278 | J36: =(H36-I36) -> 5 | L36: =((C36*5)+(D36*3)+(E36*2)+(F36*1))-K36 -> 19
A37: Hotshots | B37: 7 | C37: 2 | F37: 4 | G37: 1 | H37: 217 | I37: 256 | J37: =(H37-I37) -> -39 | L37: =((C37*5)+(D37*3)+(E37*2)+(F37*1))-K37 -> 14
A38: T'Bred Mustangs | B38: 7 | F38: 2 | G38: 5 | H38: 125 | I38: 309 | J38: -184 | L38: 2
D40: DIVISION 5
A41: TEAM | B41: P | C41: W | D41: D | E41: L(-5) | F41: L(50%) | G41: L | H41: F | I41: A | J41: g/diff | K41: Deducted | L41: Pts
A42: White Knights | B42: 7 | C42: 7 | H42: 306 | I42: 160 | J42: =(H42-I42) -> 146 | L42: =((C42*5)+(D42*3)+(E42*2)+(F42*1))-K42 -> 35
A43: NU Amber | B43: 7 | C43: 5 | F43: 1 | G43: 1 | H43: 265 | I43: 210 | J43: =(H43-I43) -> 55 | K43: 2 | L43: =((C43*5)+(D43*3)+(E43*2)+(F43*1))-K43 -> 24
A44: Falcons | B44: 7 | C44: 4 | F44: 2 | G44: 1 | H44: 287 | I44: 241 | J44: =(H44-I44) -> 46 | L44: =((C44*5)+(D44*3)+(E44*2)+(F44*1))-K44 -> 22
A45: Watton Wolves | B45: 7 | C45: 3 | F45: 3 | G45: 1 | H45: 212 | I45: 247 | J45: =(H45-I45) -> -35 | L45: =((C45*5)+(D45*3)+(E45*2)+(F45*1))-K45 -> 18
A46: UEA Gold | B46: 7 | C46: 2 | F46: 4 | G46: 1 | H46: 186 | I46: 243 | J46: =(H46-I46) -> -57 | L46: =((C46*5)+(D46*3)+(E46*2)+(F46*1))-K46 -> 14
A47: Hornets | B47: 7 | F47: 4 | G47: 3 | H47: 125 | I47: 280 | J47: -155 | L47: 4
D49: DIVISION 6
A50: TEAM | B50: P | C50: W | D50: D | E50: L(-5) | F50: L(50%) | G50: L | H50: F | I50: A | J50: g/diff | K50: Deducted | L50: Pts
A51: Hethersett Rockets | B51: 7 | C51: 6 | F51: 1 | H51: 290 | I51: 240 | J51: =(H51-I51) -> 50 | L51: =((C51*5)+(D51*3)+(E51*2)+(F51*1))-K51 -> 31
A52: T'bred Ponies | B52: 7 | C52: 5 | E52: 2 | H52: 252 | I52: 209 | J52: =(H52-I52) -> 43 | L52: =((C52*5)+(D52*3)+(E52*2)+(F52*1))-K52 -> 29
A53: NU Ruby | B53: 7 | C53: 5 | F53: 2 | H53: 237 | I53: 209 | J53: =(H53-I53) -> 28 | L53: =((C53*5)+(D53*3)+(E53*2)+(F53*1))-K53 -> 27
A54: Gems | B54: 7 | C54: 3 | E54: 1 | F54: 3 | H54: 214 | I54: 222 | J54: =(H54-I54) -> -8 | L54: =((C54*5)+(D54*3)+(E54*2)+(F54*1))-K54 -> 20
A55: Trailblazers | B55: 7 | C55: 3 | F55: 3 | G55: 1 | H55: 178 | I55: 200 | J55: =(H55-I55) -> -22 | L55: =((C55*5)+(D55*3)+(E55*2)+(F55*1))-K55 -> 18
A56: First Home Improvements | B56: 7 | E56: 2 | F56: 4 | G56: 1 | H56: 173 | I56: 264 | J56: =(H56-I56) -> -91 | K56: 2 | L56: =((C56*5)+(D56*3)+(E56*2)+(F56*1))-K56 -> 6
E58: DIVISION 7
A59: TEAM | B59: P | C59: W | D59: D | E59: L(-5) | F59: L(50%) | G59: L | H59: F | I59: A | J59: g/diff | K59: Deducted | L59: Pts
A60: Cromer Cobras | B60: 7 | C60: 7 | H60: 351 | I60: 151 | J60: =(H60-I60) -> 200 | L60: =((C60*5)+(D60*3)+(E60*2)+(F60*1))-K60 -> 35
A61: Dragons | B61: 7 | C61: 5 | G61: 2 | H61: 205 | I61: 186 | J61: =(H61-I61) -> 19 | L61: =((C61*5)+(D61*3)+(E61*2)+(F61*1))-K61 -> 25
A62: Thetford Spitfires | B62: 7 | C62: 4 | E62: 1 | F62: 2 | H62: 234 | I62: 202 | J62: =(H62-I62) -> 32 | L62: =((C62*5)+(D62*3)+(E62*2)+(F62*1))-K62 -> 24
A63: NU Red | B63: 7 | C63: 2 | F63: 4 | G63: 1 | H63: 182 | I63: 225 | J63: =(H63-I63) -> -43 | L63: =((C63*5)+(D63*3)+(E63*2)+(F63*1))-K63 -> 14
A64: Wymondham Wildkats | B64: 7 | C64: 3 | F64: 1 | G64: 3 | H64: 165 | I64: 246 | J64: =(H64-I64) -> -81 | K64: 4 | L64: =((C64*5)+(D64*3)+(E64*2)+(F64*1))-K64 -> 12
A65: UEA Pink | B65: 7 | F65: 4 | G65: 3 | H65: 128 | I65: 255 | J65: =(H65-I65) -> -127 | L65: =((C65*5)+(D65*3)+(E65*2)+(F65*1))-K65 -> 4
A67: CANCELLED
A68: All Division 7 | B68: 2025-11-04 | C68: No venue
A69: TB Racers v Thetford A | B69: 2025-12-16 | C69: No Court available
A72: CONCEDED
A73: Trailblazers v FHI | B73: 2025-11-25
A74: Stars v NU Royal | B74: 2025-12-16
A75: NU Amber v Watton Wolves | B75: 2026-01-06
A76: Oracle Pink v TB Shetlands | B76: 2026-01-27
A77: Wym Wildkats v NU Red | B77: 2026-01-27
A78: VOID
A79: NU Ruby v Trailblazers | B79: 2025-12-09

Sheet Thursday CVL
A1: NORWICH NETBALL WINTER LEAGUE 2025-26
D2: THURSDAY OUTDOOR
A3: TEAM | B3: P | C3: W | D3: D | E3: L(-5) | F3: L(50%) | G3: L | H3: F | I3: A | J3: g/diff | K3: Deducted | L3: Pts
A4: Renegades | B4: 10 | C4: 10 | H4: 355 | I4: 142 | J4: =(H4-I4) -> 213 | L4: =((C4*5)+(D4*3)+(E4*2)+(F4*1))-K4 -> 50
A5: Icenians | B5: 14 | C5: 8 | D5: 1 | E5: 1 | F5: 3 | G5: 1 | H5: 408 | I5: 285 | J5: =(H5-I5) -> 123 | L5: =((C5*5)+(D5*3)+(E5*2)+(F5*1))-K5 -> 48
A6: Scorpians | B6: 11 | C6: 7 | E6: 2 | F6: 2 | H6: 334 | I6: 221 | J6: =(H6-I6) -> 113 | L6: =((C6*5)+(D6*3)+(E6*2)+(F6*1))-K6 -> 41
A7: Parklife | B7: 10 | C7: 6 | D7: 1 | E7: 2 | G7: 1 | H7: 333 | I7: 242 | J7: =(H7-I7) -> 91 | L7: =((C7*5)+(D7*3)+(E7*2)+(F7*1))-K7 -> 37
A8: Trowse Jaguars | B8: 10 | C8: 6 | E8: 1 | F8: 2 | G8: 1 | H8: 230 | I8: 195 | J8: =(H8-I8) -> 35 | L8: =((C8*5)+(D8*3)+(E8*2)+(F8*1))-K8 -> 34
A9: Vixens | B9: 12 | C9: 6 | E9: 1 | F9: 3 | G9: 2 | H9: 273 | I9: 273 | J9: 0 | K9: 2 | L9: 33
A10: Trailblazers B | B10: 12 | C10: 5 | E10: 2 | F10: 4 | G10: 1 | H10: 250 | I10: 237 | J10: =(H10-I10) -> 13 | L10: =((C10*5)+(D10*3)+(E10*2)+(F10*1))-K10 -> 33
A11: Thoroughbreds | B11: 10 | C11: 6 | F11: 1 | G11: 3 | H11: 178 | I11: 209 | J11: -31 | L11: 31
A12: Mighty Peaches | B12: 12 | C12: 5 | E12: 1 | F12: 4 | G12: 2 | H12: 289 | I12: 344 | J12: -55 | L12: 31
A13: NMNC 1 | B13: 11 | C13: 7 | F13: 1 | G13: 3 | H13: 264 | I13: 244 | J13: =(H13-I13) -> 20 | K13: 6 | L13: =((C13*5)+(D13*3)+(E13*2)+(F13*1))-K13 -> 30
A14: NCF | B14: 10 | C14: 4 | E14: 4 | F14: 1 | G14: 1 | H14: 280 | I14: 246 | J14: 34 | L14: 29
A15: Hellesdon Hawks | B15: 9 | C15: 5 | F15: 2 | G15: 2 | H15: 186 | I15: 200 | J15: -14 | L15: 27
A16: Cliff Park | B16: 8 | C16: 5 | F16: 1 | G16: 2 | H16: 188 | I16: 164 | J16: 24 | K16: 2 | L16: 24
A17: Wymondham Wildkats | B17: 10 | C17: 4 | E17: 1 | F17: 4 | G17: 1 | H17: 250 | I17: 329 | J17: -79 | K17: 2 | L17: 24
A18: Loddon | B18: 12 | C18: 3 | D18: 1 | E18: 1 | F18: 4 | G18: 3 | H18: 316 | I18: 417 | J18: -101 | L18: 24
A19: Firebirds | B19: 10 | C19: 4 | F19: 3 | G19: 3 | H19: 188 | I19: 246 | J19: -58 | K19: 6 | L19: 17
A20: Magpies | B20: 8 | C20: 2 | F20: 2 | G20: 4 | H20: 126 | I20: 224 | J20: -98 | L20: 12
A21: NMNC 2 | B21: 9 | C21: 2 | D21: 1 | F21: 2 | G21: 4 | H21: 117 | I21: 204 | J21: 4 | K21: 8 | L21: 7
A22: UEA Yellow | B22: 11 | C22: 1 | E22: 1 | F22: 4 | G22: 5 | H22: 161 | I22: 319 | J22: =(H22-I22) -> -158 | K22: 4 | L22: 7
A23: Trailblazers A/Youth | B23: 1 | C23: 1 | H23: 39 | I23: 24 | J23: =(H23-I23) -> 15 | L23: 5
H24: =SUM(H4:H23) -> 4765 | I24: =SUM(I4:I23) -> 4765
A26: Conceded
A27: NMNC1 v Icenians | B27: 2025-09-11
A28: Cliff Park v NMNC2 | B28: 2025-09-11
A29: Firebirds v Vixens | B29: 2025-12-04
A30: Trailblazers v Firebirds | B30: 2025-12-11
A31: Trailblazers v Vixens | B31: 2025-12-18
A32: NMNC1 v Wym Wildkats | B32: 2026-01-29
A36: Void
A37: UEA Yellow v Thoroughbreds | B37: 2025-09-11
A38: Trowse v NMNC2 | B38: 2025-10-16
A39: Icenians v UEA Yellow | B39: 2025-11-27
A41: Cancelled by League
A42: W Wilkats v UEA Yellow | B42: 2025-10-09 | C42: No posts
A43: Parklife v NMNC1 | B43: 2025-10-09 | C43: No posts
A44: Trowse NMNC2 | B44: 2025-10-16 | C44: Played 27/11/25
A45: Trailblazers B v Firebirds | B45: 2025-10-23 | C45: No posts
A46: Renagades v NMNC2 | B46: 2025-10-30 | C46: No posts
A47: All Matches | B47: 2025-11-06 | C47: No courts available at Hellesdon
A48: All Matches | B48: 2026-01-08 | C48: Weather
A49: All Matches | B49: 2026-01-15 | C49: Weather
A53: Team cancellations | B53: 2025-11-20 | C53: All matches except UEA v NCF
A65507: 27 | B65507: 33
